Cogmind - Beta 16 @@@ ROGUE MODE // 2025.10.30 @ 20:48:35 Player: J1ang-5h1 Result: Destroyed by S-27 Virus with Autogun Performance ------------- Evolutions (3) 1500 Regions Visited (5) 1000 Robots Destroyed (115) 575 Value Destroyed (3275) 3275 Prototype IDs (10) 200 Alien Tech Used (0) 0 Bonus (33) 33 TOTAL SCORE: 6583 Bonus ------- High Alert Combat Kills 33 Cogmind --------- Core Integrity 0/700 Matter 174/300 Energy 0/100 System Corruption 10% Temperature Warm (153) Movement Core (850) Ox16 Location -7/Storage Parts ------- > --- POWER (1) -------- (None) > --- PROPULSION (4) --- (None) > --- UTILITY (6) ------ High-capacity Storage Unit Hardened Medium Armor Plating > --- WEAPON (2) ------- Enhanced Autogun > --- INVENTORY (20) --- Armored Huge Wheel High-capacity Matter Pod (200) Improved Signal Interpreter Hardened Medium Armor Plating High-powered Tractor Beam Peak State ------------ > --- POWER ------------ Improved Deuterium Engine > --- PROPULSION ------- Armored Huge Wheel Armored Huge Wheel > --- UTILITY ---------- Improved Heat Sink High-capacity Storage Unit Trap Scanner Particle Charger Hardened Medium Armor Plating Hardlight Generator > --- WEAPON ----------- Advanced Beam Rifle Advanced Beam Rifle > --- INVENTORY -------- Heavy Ion Engine Armored Huge Wheel Armored Huge Wheel High-capacity Matter Pod Improved Terrain Scanner Advanced Beam Rifle Advanced Beam Rifle Advanced Beam Rifle Advanced Beam Rifle Enhanced Autogun Enhanced Autogun Enhanced Autogun Improved Grenade Launcher Improved Datajack Plasma Cutter Axe [Rating: 50] Favorites ----------- Power Heavy Ion Engine Engine Heavy Ion Engine Power Core Light Nuclear Core Propulsion Wheel Treads Light Treads Wheel Wheel Utility High-capacity Storage Unit Device Improved Heat Sink Storage High-capacity Storage Unit Protection Reactive Plating Weapon Advanced Beam Rifle Energy Gun Advanced Beam Rifle Ballistic Gun Assault Rifle Launcher Improved Grenade Launcher Impact Weapon Hammer Slashing Weapon Axe Build | -11 -10 -10 -8 -7 -7 ------- Run | Yrd Mat Sub Mat Fac Sto Slots Evolved 6 | . . . 4 2 . Power . | . . . . . . Propulsion 2 | . . . 2 . . Utility 4 | . . . 2 2 . Weapon . | . . . . . . Parts Attached 91 | 7 13 8 46 3 14 Power 16 | 1 3 3 7 1 1 Engine 14 | 1 3 3 6 1 . Core 2 | . . . 1 . 1 Reactor . | . . . . . . Propulsion 20 | 2 4 . 11 1 2 Treads 2 | . 2 . . . . Leg . | . . . . . . Wheel 18 | 2 2 . 11 1 2 Hover . | . . . . . . Flight . | . . . . . . Utility 25 | 2 2 2 12 1 6 Device 12 | 1 . . 9 1 1 Storage 4 | 1 2 . 1 . . Processor . | . . . . . . Hackware . | . . . . . . Protection 9 | . . 2 2 . 5 Artifact . | . . . . . . Weapon 30 | 2 4 3 16 . 5 Energy Gun 12 | 2 . . 9 . 1 Energy Cannon . | . . . . . . Ballistic Gun 13 | . 3 3 5 . 2 Ballistic Cannon . | . . . . . . Launcher 1 | . . . . . 1 Special Weapon . | . . . . . . Impact Weapon 2 | . 1 . 1 . . Slashing Weapon 2 | . . . 1 . 1 Piercing Weapon . | . . . . . . Special Melee Weapon . | . . . . . . Unidentified Prototypes 5 | . . . 5 . . Parts Lost 50 | . 3 7 19 . 21 Power 10 | . 1 3 4 . 2 Propulsion 11 | . 1 1 6 . 3 Utility 14 | . . 1 4 . 9 Weapon 15 | . 1 2 5 . 7 Highest Loss Streak 11 | . 2 3 6 . 11 To Critical Strikes 1 | . . . . . 1 Average Backups 15 | 6 10 17 17 17 14 Power 1 | . 1 1 1 . . Propulsion 2 | 3 3 3 1 2 1 Utility 4 | . 3 5 5 3 7 Weapon 6 | . 3 6 9 8 5 Tool/Special . | . . . . . . Unused Backups 28 | . 6 1 13 . 8 Power 3 | . 1 . 2 . . Propulsion 3 | . 1 1 1 . . Utility 12 | . 3 . 3 . 6 Weapon 8 | . 1 . 7 . . Tool/Special 2 | . . . . . 2 Average Slot Usage (%) 88 | . 99 99 85 83 65 Engine 9 | . 13 13 7 7 4 Treads 4 | . 7 22 1 . . Wheel 18 | . 20 5 22 15 11 Device 15 | . 13 2 17 29 15 Storage 10 | . 14 14 9 7 7 Protection 6 | . . 11 8 7 8 Energy Gun 7 | . 4 . 10 9 10 Ballistic Gun 9 | . 17 25 4 . 2 Impact Weapon 2 | . 5 2 . . . Slashing Weapon 1 | . . . 1 4 1 Peak Build Rating 50 | 8 9 14 44 50 50 Average Rating 24 | 4 8 10 30 49 38 On Entrance 20 | . 8 9 14 42 49 Avg Prop Armor Cover (%) 17 | . . . 17 . . Naked Turns . | . . . . . . Heaviest Build 74 | 13 48 53 69 74 74 Greatest Support 56 | 20 40 40 56 56 56 Greatest Overweight (x) 15 | 3 1 1 15 1 2 Average Overweight (x) . | . . 1 1 1 1 Largest Inventory Capacity 20 | 8 20 20 20 20 20 Average Capacity 17 | 7 13 20 20 20 20 Most Carried 20 | 8 19 20 20 20 20 Average Carried 15 | 6 10 17 18 19 16 Final Capacity 20 | 8 20 20 20 20 20 Final Carried 20 | 8 19 20 19 20 6 Class Distribution -------------------- 74% | Mutant 25% | Scavenger-Mutant Dominant Class ---------------- Mutant | -10/Materials Mutant | -10/Subcaves Mutant | -8/Materials Mutant | -7/Factory Mutant | -7/Storage Resources | -11 -10 -10 -8 -7 -7 ----------- Run | Yrd Mat Sub Mat Fac Sto Matter Collected 2382 | 270 498 260 1044 100 210 Remotely . | . . . . . . Salvage Created 4379 | 149 364 329 2193 358 986 Parts 255 | 17 36 24 130 13 35 Haulers Intercepted 6 | . 1 . 4 . 1 Recyclers Shooed 1 | . . . 1 . . Parts Field Recycled . | . . . . . . Retrieved Matter . | . . . . . . Parts Self-Destructed 10 | . . 10 . . . Prevented . | . . . . . . Parts Restored . | . . . . . . Kills | -11 -10 -10 -8 -7 -7 ------- Run | Yrd Mat Sub Mat Fac Sto Combat Hostiles Destroyed 82 | . 11 9 41 6 15 Melee 7 | . . . . 3 4 Guns 72 | . 11 9 41 2 9 Classes Destroyed 15 | 2 4 2 5 . 2 Worker 6 | . . . 5 1 . Builder 3 | . . . 2 . 1 Tunneler 6 | 5 . . 1 . . Hauler 6 | . 1 . 4 . 1 Recycler 3 | 1 . . 1 . 1 Operator 3 | . . . 2 1 . Watcher 6 | . 1 . 5 . . Swarmer 25 | . 6 4 14 . 1 Grunt 34 | . 5 . 17 6 6 Duelist 1 | . . . . . 1 Sentry 12 | . . . 8 . 4 Hunter 2 | . . . 2 . . Programmer 3 | . . . . . 3 Cobbler 1 | . . 1 . . . Subdweller 5 | . . 5 . . . Best Kill Streak 12 | 2 3 4 12 3 6 Combat Bots Only 9 | . 3 4 9 3 5 Max Kills in Single Turn 2 | 1 2 1 2 1 1 Gunslinging 1 | . 1 . . . . Exploded . | . . . . . . Melee 1 | . . . . 1 1 Uniques/NPCs Destroyed . | . . . . . . Combat | -11 -10 -10 -8 -7 -7 -------- Run | Yrd Mat Sub Mat Fac Sto Hostile Shots Fired 884 | . 57 93 269 28 437 Missed 230 | . 12 33 63 6 116 Hits 654 | . 45 60 206 22 321 Melee 5 | . . . . . 5 Projectile 649 | . 45 60 206 22 316 Critical Strikes 19 | . 2 1 5 4 7 Damage Taken 8125 | . 562 796 2761 338 3668 Core 1482 | . 116 117 549 14 686 Absorbed by Shields 8 | . . . 8 . . Redirected to Shielding 51 | . . 5 46 . . Ignored by Resistances 56 | . . . 56 . . Regen/Repaired (Parts) 76 | . 76 . . . . Core Remaining (%) 35 | 100 . 6 . . . Volleys Fired 322 | 12 38 28 161 19 64 Largest 2 | 2 2 2 2 2 2 Hottest 122 | 80 80 40 122 122 122 Shots Fired 600 | 24 76 56 288 38 118 Gun 598 | 24 76 56 288 38 116 Cannon . | . . . . . . Launcher 2 | . . . . . 2 Special . | . . . . . . Kinetic 315 | . 46 56 173 . 40 Thermal 283 | 24 30 . 115 38 76 Explosive 2 | . . . . . 2 Electromagnetic . | . . . . . . Robot Hit Streak 19 | 3 11 7 19 8 12 Robot Miss Streak 8 | 4 4 8 5 3 4 Penetration Max . | . . . . . . Secondary Targets 13 | . 4 . 4 1 4 Max Gunslinging Chain 1 | . 1 . 1 1 1 Shots Hit Robots 420 | 12 44 35 198 31 100 Core Hits 186 | 7 23 16 94 12 34 Critical Kills 1 | . . . 1 . . Critical Parts Destroyed . | . . . . . . Critical Strikes 20 | . . . 11 4 5 Burn 18 | . . . 10 4 4 Destroy 1 | . . . 1 . . Sever 1 | . . . . . 1 Melee Attacks 60 | . 8 8 20 9 15 Impact 24 | . 8 8 8 . . Slashing 36 | . . . 12 9 15 Piercing . | . . . . . . Sneak Attacks 5 | . . . 4 1 . Combat Hostiles . | . . . . . . Follow-up Attacks . | . . . . . . Damage Inflicted 8075 | 133 530 474 3860 769 2309 Guns 6852 | 133 530 474 3409 524 1782 Cannons . | . . . . . . Explosions 89 | . . . . . 89 Melee 1134 | . . . 451 245 438 Ramming . | . . . . . . Kinetic 2944 | . 322 474 1690 . 458 Thermal 3908 | 133 208 . 1719 524 1324 Explosive 89 | . . . . . 89 Electromagnetic . | . . . . . . Impact 121 | . . . 121 . . Slashing 1013 | . . . 330 245 438 Piercing . | . . . . . . Highest Corruption 10 | . 2 2 2 . 10 Average Corruption 2 | . 2 2 1 . 4 Corruption Purged 2 | . . . 2 . . Corruption Blocked . | . . . . . . Effects 25 | . 8 2 12 . 3 Message Errors 7 | . 3 . 3 . 1 Matter Fused 4 | . 3 . 1 . . Heat Flow Errors 3 | . 2 . 1 . . Data Loss (minor) 6 | . . . 5 . 1 Data Loss (major) 3 | . . 2 1 . . Misfires 1 | . . . . . 1 Weapon Failures 1 | . . . 1 . . Overload Shots . | . . . . . . Overflow Damage 174 | . . . 156 18 . Projectiles . | . . . . . . Explosions . | . . . . . . Melee 174 | . . . 156 18 . Knockbacks . | . . . . . . Impact . | . . . . . . Kinetic . | . . . . . . Secondary . | . . . . . . Self-Inflicted Damage . | . . . . . . Shots . | . . . . . . Rammed . | . . . . . . Targets Rammed . | . . . . . . Kicked . | . . . . . . Crushed . | . . . . . . Highest Temperature 595 | 72 195 . 388 210 595 Average Temperature 105 | 26 45 . 63 101 198 Received Heat Transfer 2964 | . 231 126 1326 270 1011 Effects 17 | . . . . . 17 Shutdowns 2 | . . . . . 2 Energy Bleed 4 | . . . . . 4 Interference 4 | . . . . . 4 Short Circuit 1 | . . . . . 1 Damage (minor) 4 | . . . . . 4 Damage (major) 1 | . . . . . 1 Damage (core) 1 | . . . . . 1 Siege Activations . | . . . . . . Martial Activations . | . . . . . . Shielding Activations . | . . . . . . Robots Disrupted . | . . . . . . Combat Hostiles . | . . . . . . Robots Corrupted . | . . . . . . Combat Hostiles . | . . . . . . Parts Fried . | . . . . . . Impact Corruptions . | . . . . . . Robots Melted 3 | . . . . 1 2 Combat Hostiles 3 | . . . . 1 2 Parts Melted 16 | 2 . . 7 4 3 Heat Transferred 8426 | 300 475 . 3774 1221 2656 Parts Sabotaged . | . . . . . . Parts Stolen . | . . . . . . Parts Stripped . | . . . . . . Power Chain Reactions . | . . . . . . Alert | -11 -10 -10 -8 -7 -7 ------- Run | Yrd Mat Sub Mat Fac Sto Maximum Alert Level 2 | . . . 2 1 . Low Security (%) 89 | 100 100 . 78 96 100 Level 1 8 | . . . 17 3 . Level 2 1 | . . . 3 . . Level 3 . | . . . . . . Level 4 . | . . . . . . Level 5 . | . . . . . . High Security . | . . . . . . Max Security . | . . . . . . Peak Influence 457 | 10 144 . 457 204 128 Initial 204 | . 3 . . 204 52 Average 108 | 2 29 . 177 133 48 Influence Increases 2412 | 30 347 140 1249 173 473 Destroy 0b10 Robot/C 1540 | . 220 80 820 120 300 Destroy 0b10 Robot/NC 165 | 30 10 . 100 10 15 Destroy Leader 374 | . 54 . 198 20 102 Successful Hack 81 | . 29 . 26 19 7 Disable Machine 45 | . . . 45 . . Destroy Structure 42 | . 4 . 15 4 19 Lose Combat Pursuer 165 | . 30 60 45 . 30 Influence Decreases 2294 | 25 352 140 799 508 470 Entered New Map 311 | . 2 . . 246 63 Time Decay 1513 | 25 320 90 609 262 207 Lost Part 470 | . 30 50 190 . 200 Squads Dispatched 15 | . 1 . 6 3 5 Investigation 3 | . . . 2 . 1 Extermination 1 | . . . . . 1 Reinforcement 5 | . 1 . 4 . . Assault . | . . . . . . Garrison 6 | . . . . 3 3 Intercept . | . . . . . . Searches Triggered . | . . . . . . Construction Impeded . | . . . . . . Haulers Reinforced . | . . . . . . Active Scanning Responses . | . . . . . . Cargo Convoy Interrupts . | . . . . . . Stealth | -11 -10 -10 -8 -7 -7 --------- Run | Yrd Mat Sub Mat Fac Sto Distress Signals 6 | . 1 . 3 . 2 Communications Jammed . | . . . . . . Distress Signals . | . . . . . . Times Spotted 119 | . 21 9 60 7 22 Peak Tracking Total 7 | . 5 6 7 4 5 Tactical Retreats 8 | . 2 2 3 . 1 Traps | -11 -10 -10 -8 -7 -7 ------- Run | Yrd Mat Sub Mat Fac Sto Traps Triggered 3 | . 1 . 1 . 1 Indirectly . | . . . . . . Trap Hack Attempts . | . . . . . . Triggered . | . . . . . . Disarmed . | . . . . . . Reprogrammed . | . . . . . . Reused . | . . . . . . Traps Extracted . | . . . . . . Installed . | . . . . . . Triggered . | . . . . . . Machines | -11 -10 -10 -8 -7 -7 ---------- Run | Yrd Mat Sub Mat Fac Sto Machines Disabled 3 | . . . 3 . . Max in Single Turn 1 | . . . 1 . . Garrison Access 1 | . . . 1 . . Machines Repaired . | . . . . . . Machines Dismantled . | . . . . . . Machines Sabotaged . | . . . . . . Overloaded Fab Kills . | . . . . . . Hacking | -11 -10 -10 -8 -7 -7 --------- Run | Yrd Mat Sub Mat Fac Sto Machines Accessed 32 | . 10 . 12 6 4 Terminals 21 | . 7 . 8 4 2 Fabricators . | . . . . . . Repair Stations 2 | . 1 . . . 1 Recycling Units 3 | . 2 . 1 . . Scanalyzers 2 | . . . 2 . . Garrison Access 4 | . . . 1 2 1 Total Hacks 101 | . 38 . 41 10 12 Successful 52 | . 21 . 25 3 3 Failed 48 | . 17 . 15 7 9 Catastrophic 6 | . 1 . 2 1 2 Database Lockouts 1 | . . . 1 . . Manual 46 | . 19 . 21 3 3 Terminals 70 | . 30 . 29 7 4 Fabricators . | . . . . . . Repair Stations 8 | . 4 . . . 4 Recycling Units 5 | . 4 . 1 . . Scanalyzers 10 | . . . 10 . . Garrison Access 8 | . . . 1 3 4 Terminal Hacks 20 | . 8 . 8 3 1 Robot Analysis 4 | . . . 4 . . Prototype ID Bank 3 | . 2 . . 1 . Open Door 1 | . . . . . 1 Open DSF 1 | . . . . 1 . Terminal Index 1 | . . . 1 . . Locate Traps 4 | . 2 . 1 1 . Transport Status 1 | . 1 . . . . Hauler Manifests 2 | . 1 . 1 . . Zone Layout 3 | . 2 . 1 . . Fabricator Hacks . | . . . . . . Repair Station Hacks 5 | . 4 . . . 1 Scan Component 3 | . 2 . . . 1 Repair 2 | . 2 . . . . Recycling Unit Hacks 2 | . 1 . 1 . . Report Inventory 2 | . 1 . 1 . . Scanalyzer 7 | . . . 7 . . Insert Component 1 | . . . 1 . . Analyze 1 | . . . 1 . . Retrieve Study 5 | . . . 5 . . Garrison Access Hacks 1 | . . . 1 . . Seal Access 1 | . . . 1 . . Unauthorized Hacks 17 | . 8 . 8 . 1 Terminals 17 | . 8 . 8 . 1 Botnet 7 | . 3 . 3 . 1 Skim 10 | . 5 . 5 . . Fabricators . | . . . . . . Repair Stations . | . . . . . . Recycling Units . | . . . . . . Scanalyzers . | . . . . . . Garrison Access . | . . . . . . Data Cores Recovered 2 | . . . 1 1 . Used . | . . . . . . Hacking Detections 29 | . 10 . 11 5 3 Full Trace Events 3 | . 1 . 1 . 1 Feedback Events . | . . . . . . Feedback Blocked . | . . . . . . Robot Schematics Acquired . | . . . . . . Robots Built . | . . . . . . Authchips . | . . . . . . Time . | . . . . . . Total Robot Build Rating . | . . . . . . Part Schematics Acquired 1 | . . . 1 . . Parts Built . | . . . . . . Authchips . | . . . . . . Time . | . . . . . . Total Part Build Rating . | . . . . . . Part Studies Acquired 5 | . . . 5 . . Parts Repaired 2 | . 2 . . . . Time 52 | . 52 . . . . Parts Recycled . | . . . . . . Recycled Matter . | . . . . . . Retrieved Matter . | . . . . . . Retrieved Components . | . . . . . . Parts Scanalyzed 1 | . . . 1 . . Part Schematics Acquired 1 | . . . 1 . . Parts Damaged . | . . . . . . Bothacking | -11 -10 -10 -8 -7 -7 ------------ Run | Yrd Mat Sub Mat Fac Sto Used RIF Installer . | . . . . . . Robots Hacked . | . . . . . . Non-combat . | . . . . . . Combat . | . . . . . . Robot Hacks Applied . | . . . . . . Relay Couplers Released 4 | . . . . . 4 Programmers 4 | . . . . . 4 Fabnet Peak Effective % . | . . . . . . Robots Rewired . | . . . . . . Allies Hacked . | . . . . . . Hacks Repelled . | . . . . . . Allies | -11 -10 -10 -8 -7 -7 -------- Run | Yrd Mat Sub Mat Fac Sto Total Allies . | . . . . . . Largest Group . | . . . . . . Highest-Rated Group . | . . . . . . Highest-Rated Ally . | . . . . . . Total Orders . | . . . . . . Ally Attacks . | . . . . . . Total Damage . | . . . . . . Kills . | . . . . . . Allies Corrupted . | . . . . . . Allies Melted . | . . . . . . Intel | -11 -10 -10 -8 -7 -7 ------- Run | Yrd Mat Sub Mat Fac Sto Active Infowar (turns) 3889 | 46 1461 105 1394 574 309 Structural 229 | . . . 229 . . Traps 2083 | . . . 1200 574 309 Seismic 1612 | 46 1461 105 . . . Robot Analysis Total 4 | . . . 4 . . Derelict Logs Recovered 1 | . . 1 . . . Drone Launches . | . . . . . . Drone Recoveries . | . . . . . . Exploration | -11 -10 -10 -8 -7 -7 ------------- Run | Yrd Mat Sub Mat Fac Sto Turns Passed 5495 | 138 1522 541 2214 574 506 Spaces Moved 3372 | 81 1148 200 1361 380 202 Core 40 | 35 . . 5 . . Treads 349 | . 203 146 . . . Legs . | . . . . . . Wheels 2983 | 46 945 54 1356 380 202 Hover . | . . . . . . Flight . | . . . . . . Fastest Speed 50 | 50 80 115 85 115 100 Average Speed 114 | 101 108 206 107 115 115 Slowest Speed 800 | 200 240 240 800 115 130 Overloaded Moves . | . . . . . . Propulsion Burnouts . | . . . . . . Robots Hopped . | . . . . . . Potential Cave-ins . | . . . . . . Cave-ins Triggered . | . . . . . . Exploration Rate (%) 42 | 4 99 11 90 12 40 Regions Visited 5 Branch Regions 2 Pre-discovered Areas 2 | . . . 2 . . Known Exits Taken 1 | . . . . 1 . Unknown Exits Taken 4 | 1 1 1 1 . . Scrap Searched . | . . . . . . Spaces Dug 21 | . 4 1 12 3 1 Terrain Destroyed 36 | . 4 1 12 3 16 Melee 21 | . 4 1 12 3 1 Projectile . | . . . . . . AOE 15 | . . . . . 15 Terrain Rammed . | . . . . . . Walls Destroyed . | . . . . . . Machines Disabled . | . . . . . . Actions | -11 -10 -10 -8 -7 -7 --------- Run | Yrd Mat Sub Mat Fac Sto Total 4311 | 110 1339 259 1792 461 350 Wait 256 | . 91 . 105 37 23 Move 3367 | 80 1147 199 1360 379 202 Hop . | . . . . . . Pick Up 107 | 11 25 10 45 5 11 Fast Attach 18 | 4 3 . 10 1 . Attach 60 | 3 4 7 24 2 20 Detach 1 | . . . . . 1 Swap 51 | . 8 5 29 6 3 Drop 69 | . 15 2 38 3 11 Fire 322 | 12 38 28 161 19 64 Melee 60 | . 8 8 20 9 15 Ram . | . . . . . . Kick . | . . . . . . Crush . | . . . . . . Escape Stasis . | . . . . . . Rewire . | . . . . . . Trap . | . . . . . . Miscellaneous . | . . . . . . Route ------- -11/Scrapyard -10/Materials (discovered 5 exits: [*Mat x3] / [*Min] / [*Sub]) -10/Subcaves -8/Materials (discovered 2 exits: *Fac x2) -7/Factory -7/Storage History --------- Turn | Location | Event 9 | -11/Scrapyard | Discovered new exit (range 16) 139 | -11/Scrapyard | Entered Materials 167 | -10/Materials | Discovered new exit (range 16) 225 | -10/Materials | Discovered new exit (range 4) 375 | -10/Materials | Discovered new exit (range 13) 579 | -10/Materials | Build established: Scavenger-Mutant 639 | -10/Materials | Derelicts attacked the area 947 | -10/Materials | Build established: Mutant 1280 | -10/Materials | Discovered new exit (range 16) 1465 | -10/Materials | Repaired Seismic Detector? 1576 | -10/Materials | Repaired Assault Rifle 1644 | -10/Materials | Discovered new exit (range 14) 1661 | -10/Materials | Entered Subcaves 1662 | -10/Subcaves | Approached by a straggling Scientist 1678 | -10/Subcaves | Learned Materials terminal intel 1701 | -10/Subcaves | Core integrity fell below 50% 1736 | -10/Subcaves | Discovered new exit (range 15) 1852 | -10/Subcaves | Lost 3 parts (1p2w) 1908 | -10/Subcaves | Ambushed by angry Subdweller bent on revenge 2048 | -10/Subcaves | Core integrity fell below 20% 2202 | -10/Subcaves | Entered Materials 2202 | -8/Materials | Evolved 4 slots: Propulsion x2, Utility x2 2203 | -8/Materials | Loaded intel: 12 terminal locations 2429 | -8/Materials | Lost 6 parts (1p3n2w) 2497 | -8/Materials | Lost 5 parts (2n1u2w) 2511 | -8/Materials | Destroyed 9 combat bots 2515 | -8/Materials | Core integrity fell below 50% 2572 | -8/Materials | Lost 4 parts (1p2u1w) 2902 | -8/Materials | Build established: Scavenger-Mutant 3695 | -8/Materials | Discovered new exit (range 15) 3901 | -8/Materials | Build established: Mutant 4230 | -8/Materials | Learned 12 Factory zone layouts 4279 | -8/Materials | Learned Factory trap positions 4286 | -8/Materials | Core integrity fell below 20% 4350 | -8/Materials | Learned location of Zion (-7) 4374 | -8/Materials | Discovered new exit (range 16) 4378 | -8/Materials | Learned 2 Lower Caves zone layouts 4379 | -8/Materials | Learned 4 Factory zone layouts 4387 | -8/Materials | Learned Storage emergency access door positions 4399 | -8/Materials | Central database locked down 4404 | -8/Materials | Learned location of 1 exit from Lower Caves 4416 | -8/Materials | Entered Factory 4416 | -7/Factory | Evolved 2 slots: Utility x2 4417 | -7/Factory | Identified exit to Storage 4419 | -7/Factory | Loaded intel: 131 trap records 4419 | -7/Factory | Identified exit to DSF 4783 | -7/Factory | Garrison activated, responded to threat 4990 | -7/Factory | Entered Storage 5204 | -7/Storage | Garrison activated, responded to threat 5383 | -7/Storage | Lost 11 parts (1p2n5u3w) 5410 | -7/Storage | Core integrity fell below 50% 5444 | -7/Storage | Core integrity fell below 20% 5473 | -7/Storage | System corruption reached 10% 5496 | -7/Storage | Destroyed by S-27 Virus with Autogun Last Messages --------------- 05471_ Destroyed Tesla Rifle. 05472_ Arm. Huge Wheel destroyed. [Achievement: Botjacking] 05474_ P-70 Sage destroyed. 05479_ K-01 Serf collects debris. 05480_ R-06 Scavenger collects Broken Adv. Beam Rifle. 05483_ K-01 Serf collects debris. 05485_ R-06 Scavenger collects Aluminum Leg. 05486_ K-01 Serf collects debris. 05488_ Y-54 Guardian destroyed. 05489_ K-01 Serf collects debris. 05491_ System corrupted: FCS attempts to trigger Enh. Autogun. 05491_ System corrupted: Enh. Autogun misfires. 05492_ K-01 Serf collects debris. 05493_ S-27 Virus destroyed. 05494_ W-25 Informer sends out distress signal. 05495_ Gatling Laser destroyed. 05495_ K-01 Serf collects debris. Map ----- +----------------------------------------------------+ | """ #???# #???????????????????????????????????? | | """ #???# #???????????????????????????????????? | | """ #???# #???????????????????????????????????? | | #???# ##??????????????????????????????????? | | #???# T#??????????????????????????????????? | | ########???# ##??????????????????????????????????? | | ???????????# #???????????????????????????????????? | | ???????????# #???????????????????????????????????? | | ???????????# #???????????????????????????????????? | | ???????????# #???????????????????????????????????? | | ???????????#%#????????????????######?????????????? | | ??????######+####?????????????# ??????????????? | | ??????# #?????????????# ""??????????????? | | ??????# * ##????????????? "???????????????? | | ??????# """" #??????????????# ???????????????? | | ??????# """" #??????????????#!!??? #???????????? | | ??????# """" % #?#######??????#*%?? ????????????? | | ??????# """" ###""G""#??????#+##+##### #?????? | | ??????# %[ ## "" ""####???#= #?????? | | ??????# % ## #?###%#########????????? | | ??????# | k !#####s#????????????????? | | ??# #####+ !!! %ss#????????????????? | | ??# %%% !!%# % #????????????????? | | ??# kr% ==#* k #####????????????? | | ??# "" ;![ % +????????????? | | ??############ "" @#####+#####????????????? | | ????????????????# "" " ] #??? ????????????????? | | ????????????????## ########??? "????????????????? | | ????????????????????????????? ""???????????????? | | ????????????????????????????? R???????????????? | | ???????????????????????????? """??????????????? | | ????????????????????????????# ???????????????? | | ????????????????????????????######???????????????? | | ?????????????????????????????????????????????????? | | ?????????????????????????????????????????????????? | | ?????????????????????????????????????????????????? | | ?????????????????????????????????????????????????? | | | | | | | | | | | | | | | | | | | | | | | | | | | +----------------------------------------------------+ Best States ------------- Heat Dissipation 73 Energy Generation 16 Energy Capacity 290 Matter Stores 300 Matter Capacity 300 Sight Range 16 Terrain Scan Density 10 Armor Coverage 675 Resistance: KI 20 Utility Shielding 33 Evasion (%) 50 Recoil Reduction 2 Particle Charging 15 Item Schematics ----------------- Arm. Huge Wheel | -8/Materials | Scanalyzed Robot Schematics ------------------ None Fabricated ------------ Nothing Repaired ---------- Seismic Detector | 35% | -10/Materials Assault Rifle | 37% | -10/Materials Studied --------- Imp. Grenade Launcher | -8/Materials | Hacked Wheel | -8/Materials | Hacked Axe | -8/Materials | Hacked Lgt. Deuterium Engine | -8/Materials | Hacked Imp. Datajack | -8/Materials | Hacked Alien Tech Used ----------------- None Achievements -------------- Art Critic Botjacking DATA ERROR: Steam Global Achievement% Hydra Item+ Organ Harvest Overwhelming There's More Where That Came From Throw Away The Key Well Done Challenges ------------ None Game ------ Seed SensorDroneCasing Manual? 0 Play Time 01:20:05 Cumulative 376.3 hours Start 2025.10.30 @ 18:43:13 End 2025.10.30 @ 20:48:35 Sessions 1 Manual Loads 0 Difficulty Rogue Special Mode None Game No. 268 Rogue 258 Adventurer 0 Explorer 10 Win Type - Total 5 Types 5/0/0/0/0/0/0/0/0/0 Lore% 80 Gallery% 67 Achievement% 35 Wizard Run 0 Options --------- Layout 2 ASCII 0 Keyboard 0 Movement Arrows Keybinds 1 Fullscreen 1 Font 24/Smallcaps Map View 50x44 Zoom Use 0% Tactical HUD 1 Map Filters NONE Filters NONE Steam 1 RUN: d7c8c354-eabd-432f-9f5f-46c28f5217f8